bitfinex-derivatives/quotes_ETHF0:USTF0_20240826
["timestamp","ask_amount","ask_price","bid_price","bid_amount"]
[1724643812359,0.36436,2743.5,2743.4,1.31]
[1724643812757,0.36436,2743.5,2743.4,1.6959]
[1724643813450,0.36438,2743.3,2743.2,1.31]
[1724643813650,0.36439,2743.2,2743.1,0.7629]
[1724643813852,0.72319,2743.2,2743.1,0.7629]
[1724643820857,0.72319,2743.2,2743.0,1.31]
[1724643820858,5.3144,2743.2,2742.7,0.95325883]
[1724643821059,1.31,2743.0,2742.7,0.36445]
[1724643821268,0.36444,2742.9,2742.6,1.10937]
[1724643821567,0.3587,2742.8,2742.7,0.36446]
[1724643823868,0.3587,2742.8,2742.6,1.10936]
[1724643824470,0.3587,2742.8,2742.6,2.06261883]
[1724643825873,0.3587,2742.8,2742.7,1.67446]
[1724643826274,0.3587,2742.8,2742.7,1.31]
[1724643826861,0.3587,2742.8,2742.7,1.67446]
[1724643827073,0.3587,2742.8,2742.7,1.31]
[1724643828268,0.36443,2743.0,2742.7,6.27331883]
[1724643828465,3.69496232,2743.2,2742.8,1.6613]
[1724643828466,0.36443,2742.9,2742.8,1.6613]
[1724643828670,2.38496232,2743.1,2742.9,0.36443]
[1724643828980,2.38496232,2743.1,2743.0,0.7709]
[1724643829172,0.12550381,2743.1,2743.0,0.7709]
[1724643830079,0.48991381,2743.1,2743.0,0.7709]
[1724643833879,0.48991381,2743.1,2743.0,2.0809]
[1724643838584,0.36441,2743.1,2743.0,2.0809]
[1724643838984,0.48989959,2743.1,2743.0,2.0809]
[1724643840180,0.12548959,2743.1,2743.0,6.09092]
[1724643842179,0.12548959,2743.1,2743.0,5.7265]
[1724643842388,0.12548959,2743.1,2743.0,6.09092]
[1724643842780,3.2078,2743.4,2743.3,0.36438]
[1724643842977,0.12544607,2743.4,2743.2,1.31]
[1724643843183,0.36436,2743.5,2743.2,2.62948586]
[1724643843381,0.12543127,2743.4,2743.3,0.3503]
[1724643843577,0.48979127,2743.4,2743.3,0.3503]
[1724643844285,0.87559127,2743.4,2743.3,0.3503]
[1724643847191,0.75016,2743.4,2743.3,0.3503]
[1724643847399,0.875621,2743.4,2743.3,0.3503]
[1724643848884,0.36439,2743.2,2743.1,3.2078]
[1724643849090,0.3644,2743.1,2743.0,2.99990586]
[1724643849386,0.3644,2743.1,2743.0,0.7348]
[1724643849779,0.7468,2743.1,2743.0,0.7348]
[1724643851585,0.3824,2743.1,2743.0,0.7348]
[1724643852085,0.7468,2743.1,2743.0,0.7348]
[1724643852592,0.7468,2743.1,2743.0,2.0448]
[1724643853088,0.3824,2743.1,2743.0,2.0448]
[1724643853392,0.7468,2743.1,2743.0,2.0448]
[1724643853587,0.3824,2743.1,2743.0,2.0448]
[1724643857190,0.3824,2743.1,2743.0,2.40922]
[1724643857591,0.362,2743.3,2743.0,2.99990586]
[1724643857899,0.362,2743.3,2743.1,1.31]
[1724643858797,0.362,2743.3,2743.1,1.67439]
[1724643860094,0.7313,2743.3,2743.1,1.67439]
[1724643860307,1.09568,2743.3,2743.1,1.67439]
[1724643860595,0.12546651,2743.2,2743.1,1.31]
[1724643860986,1.09568,2743.3,2743.1,1.31]
[1724643861588,1.09568,2743.3,2743.1,1.6744]
[1724643861899,1.67437,2743.4,2743.1,1.6744]
[1724643862087,0.12545098,2743.3,2743.1,1.6744]
[1724643862283,1.67437,2743.4,2743.1,1.6744]
[1724643862487,0.12545193,2743.3,2743.1,1.6744]
[1724643862692,0.36437,2743.4,2743.1,1.6744]
[1724643863194,0.12545281,2743.3,2743.1,1.6744]
[1724643863388,0.36437,2743.4,2743.1,1.6744]
[1724643863590,0.12545291,2743.3,2743.1,1.6744]
[1724643863893,0.36437,2743.4,2743.1,1.6744]
[1724643864099,0.12545112,2743.3,2743.1,1.6744]
[1724643864392,0.36437,2743.4,2743.1,1.6744]
[1724643864593,0.12545067,2743.3,2743.1,1.6744]
[1724643864795,0.36437,2743.4,2743.1,1.6744]
[1724643864992,0.12545196,2743.3,2743.1,1.6744]
[1724643865193,0.36437,2743.4,2743.1,1.6744]
[1724643865388,0.12545193,2743.3,2743.1,1.6744]
[1724643865696,0.36437,2743.4,2743.1,1.6744]
[1724643865897,0.12545124,2743.3,2743.1,1.6744]
[1724643866093,0.36437,2743.4,2743.1,1.6744]
[1724643866395,0.12545145,2743.3,2743.1,1.6744]
[1724643866598,0.36437,2743.4,2743.1,1.6744]
[1724643866800,0.1254496,2743.3,2743.1,1.6744]
[1724643866988,0.36437,2743.4,2743.1,4.8822]
[1724643867189,0.4898297,2743.3,2743.1,4.5178]
[1724643867389,0.36438,2743.3,2743.1,4.5178]
[1724643867805,0.36438,2743.3,2743.1,1.31]
[1724643869893,0.36438,2743.3,2743.0,2.0448]
[1724643869894,0.48985361,2743.2,2743.0,2.0448]
[1724643870201,0.7195,2743.1,2743.0,0.7348]
[1724643871094,0.3551,2743.1,2743.0,0.7348]
[1724643871595,0.3551,2743.1,2743.0,1.68990586]
[1724643872597,0.7195,2743.1,2743.0,1.68990586]
[1724643873492,0.3551,2743.1,2743.0,1.68990586]
[1724643873802,0.3551,2743.1,2743.0,2.05432586]
[1724643874097,0.7195,2743.1,2743.0,1.68990586]
[1724643874299,0.3551,2743.1,2743.0,1.68990586]
[1724643874903,0.84497933,2743.1,2743.0,1.68990586]
[1724643876194,0.48058573,2743.1,2743.0,1.68990586]
[1724643876494,0.3551,2743.1,2743.0,1.68990586]
[1724643876900,0.48058114,2743.1,2743.0,0.7348]
[1724643877295,0.84498114,2743.1,2743.0,0.7348]
[1724643877492,0.84498114,2743.1,2743.0,0.3513]
[1724643879398,0.84498114,2743.1,2743.0,1.30676665]
[1724643882701,0.7195,2743.1,2743.0,1.30676665]
[1724643882900,0.84498334,2743.1,2743.0,1.30676665]
[1724643883098,0.8449806,2743.1,2743.0,1.30676665]
[1724643883300,0.4805806,2743.1,2743.0,1.30676665]
[1724643884007,0.8449806,2743.1,2743.0,1.30676665]
[1724643884407,0.8449806,2743.1,2743.0,0.95546665]
[1724643884607,0.7195,2743.1,2743.0,0.95546665]
[1724643885006,0.3551,2743.1,2743.0,2.77832055]
[1724643885208,0.3551,2743.1,2743.0,0.95546665]
[1724643885707,0.7195,2743.1,2743.0,2.77829299]
[1724643885903,0.3551,2743.1,2743.0,2.77829299]
[1724643886207,0.3551,2743.1,2743.0,1.82282634]
[1724643886995,0.7195,2743.1,2743.0,1.82282634]
[1724643887207,0.7195,2743.1,2743.0,0.95594483]
[1724643887405,0.7195,2743.1,2742.9,0.95594483]
[1724643887810,0.12549835,2743.0,2742.9,0.95594483]
[1724643888011,0.50789835,2743.0,2742.9,0.95594483]
[1724643888512,0.50789026,2743.0,2742.9,2.77879759]
[1724643888909,0.50789026,2743.0,2742.9,0.95594483]
[1724643889107,0.50789026,2743.0,2742.9,2.77881931]
[1724643889313,0.50789026,2743.0,2742.9,2.77881069]
[1724643889811,0.50789026,2743.0,2742.9,3.14324069]
[1724643889998,0.50789026,2743.0,2742.9,3.14322861]
[1724643890911,0.50789026,2743.0,2742.9,1.82285378]
[1724643891207,0.50789026,2743.0,2742.9,0.9559856]
[1724643891603,0.87231026,2743.0,2742.9,2.7788355]
[1724643891914,0.74682,2743.0,2742.9,2.7788355]
[1724643892118,0.50788602,2743.0,2742.9,0.9559856]
[1724643892413,0.87230602,2743.0,2742.9,0.9559856]
[1724643893013,0.50788602,2743.0,2742.9,0.9559856]
[1724643895009,0.87230602,2743.0,2742.9,0.9559856]
[1724643895312,0.74682,2743.0,2742.9,0.9559856]
[1724643895510,0.87231161,2743.0,2742.9,0.9559856]
[1724643896503,0.50789161,2743.0,2742.9,0.9559856]
[1724643896704,0.50789161,2743.0,2742.9,2.77881199]
[1724643896909,0.50789161,2743.0,2742.9,0.9559856]
[1724643897108,0.12549161,2743.0,2742.9,2.6304156]
[1724643897410,0.12549161,2743.0,2742.9,4.93046235]
[1724643897609,0.3551,2743.1,2742.9,4.93046235]
[1724643897827,0.3551,2743.1,2743.0,2.7785978]
[1724643898018,0.48056554,2743.1,2743.0,2.7785978]
[1724643898218,0.84497554,2743.1,2743.0,0.95576543]
[1724643898615,0.71951,2743.1,2742.9,2.63019543]
[1724643898909,0.12547721,2743.0,2742.9,2.63019543]
[1724643899112,0.12547721,2743.0,2742.9,4.45299554]
[1724643900819,0.12547721,2743.0,2742.9,2.63019543]
[1724643901018,0.12547721,2743.0,2742.9,2.26576543]
[1724643901619,0.12548583,2743.0,2742.9,2.26576543]
[1724643902314,0.12548583,2743.0,2742.9,2.63019543]
[1724643902519,0.12548583,2743.0,2742.9,4.93046515]
[1724643903021,0.3551,2743.1,2742.9,4.93046515]
[1724643903022,0.71951,2743.1,2742.9,4.93046515]
[1724643903225,0.71951,2743.1,2743.0,0.95504932]
[1724643903419,0.84498103,2743.1,2743.0,0.95504932]
[1724643903715,0.84498103,2743.1,2742.9,2.62947932]
[1724643903923,0.12547103,2743.0,2742.9,1.31947932]
[1724643904121,0.12547103,2743.0,2742.9,3.14225737]
[1724643904622,0.12547481,2743.0,2742.9,3.14225737]
[1724643905215,0.12547481,2743.0,2742.9,3.1425767]
[1724643905616,0.12547481,2743.0,2742.9,3.14263476]
[1724643906015,0.12547481,2743.0,2742.9,4.45263476]
[1724643906221,0.3551,2743.1,2743.0,0.36442]
[1724643906525,1.31,2743.5,2743.2,0.36439]
[1724643906726,0.12544795,2743.4,2743.3,0.7207]
[1724643907127,4.13461795,2743.4,2743.3,0.7207]
[1724643908828,0.12544795,2743.4,2743.3,1.08508]
[1724643909128,0.12544795,2743.4,2743.3,2.04024751]
[1724643909525,0.12544795,2743.4,2743.3,1.67586751]
[1724643909926,0.12544795,2743.4,2743.3,5.32066751]
[1724643910124,0.12544795,2743.4,2743.3,5.68504751]
[1724643910527,0.12544795,2743.4,2743.3,6.99504751]
[1724643911429,3.58114318,2743.8,2743.4,0.36436]
[1724643911618,3.58114318,2743.8,2743.5,0.3573]
[1724643911619,4.52682318,2743.8,2743.5,0.3573]
[1724643911826,0.36434,2743.6,2743.3,3.35005161]
[1724643912124,0.12540194,2743.5,2743.3,3.35005161]
[1724643912320,0.12540194,2743.5,2743.3,2.98567161]
[1724643912634,0.48460194,2743.5,2743.3,3.35005161]
[1724643912832,0.36434,2743.6,2743.4,0.95497161]
[1724643913132,0.36434,2743.6,2743.3,3.35005161]
[1724643917632,0.36434,2743.6,2743.3,2.39508]
[1724643917935,0.36434,2743.6,2743.3,3.35005161]
[1724643918335,0.36434,2743.6,2743.3,2.39508]
[1724643918534,0.36437,2743.4,2743.3,0.7207]
[1724643919928,0.36436,2743.5,2743.3,0.7207]
[1724643920630,0.36437,2743.4,2743.3,0.7207]
[1724643920936,0.36436,2743.5,2743.3,0.7207]
[1724643921452,0.36436,2743.5,2743.3,1.08508]
[1724643922136,0.36436,2743.5,2743.3,0.7207]
[1724643923738,0.36434,2743.6,2743.3,0.7207]
[1724643923939,2.03354,2743.7,2743.4,0.36436]
[1724643924332,2.03354,2743.7,2743.5,0.36435]
[1724643924641,2.03353,2743.7,2743.5,0.36435]
[1724643925131,2.03353,2743.7,2743.5,0.73505]
[1724643925327,2.03353,2743.7,2743.5,0.3707]
[1724643925929,0.37334318,2743.8,2743.5,0.3707]
[1724643926231,0.74564318,2743.8,2743.5,0.73504]
[1724643926435,0.74564318,2743.8,2743.5,2.04504]
[1724643926642,0.36433,2743.7,2743.5,1.6807]
[1724643926939,0.36433,2743.7,2743.5,1.31]
[1724643927135,1.67433,2743.7,2743.4,1.67436]
[1724643927432,0.36435,2743.6,2743.4,1.31]
[1724643928040,1.67433,2743.7,2743.4,1.67436]
[1724643928831,0.36433,2743.7,2743.5,1.31]
[1724643929033,0.36433,2743.7,2743.6,0.3644]
[1724643929343,0.74564318,2743.8,2743.6,0.3644]
[1724643929527,0.74564318,2743.8,2743.7,0.3845]
[1724643929725,0.74564318,2743.8,2743.7,0.7657]
[1724643931432,2.05564318,2743.8,2743.7,0.7657]
[1724643931644,0.36434,2743.6,2743.4,1.31]
[1724643931839,1.69132318,2743.8,2743.5,0.7444]
[1724643931840,0.75213,2743.7,2743.5,0.7444]
[1724643933240,0.36434,2743.6,2743.5,0.7444]
[1724643934043,1.69132318,2743.8,2743.5,2.0544]
[1724643934344,0.36434,2743.6,2743.5,2.0544]
[1724643934532,0.36435,2743.5,2743.4,1.31]
[1724643935131,0.36435,2743.5,2743.4,1.689]
[1724643936732,0.36435,2743.5,2743.4,0.379]
[1724643936941,0.36435,2743.5,2743.2,1.6601]
[1724643936942,1.31,2743.6,2743.2,1.6601]
[1724643937241,0.36438,2743.3,2743.2,1.6601]
[1724643939237,0.36438,2743.3,2743.2,5.3057]
[1724643940931,0.7158,2743.4,2743.2,5.3057]
[1724643940932,1.08017,2743.4,2743.2,5.3057]
[1724643941237,1.08017,2743.4,2743.2,1.6601]
[1724643943139,1.08018,2743.4,2743.2,1.6601]
[1724643943541,1.08018,2743.4,2743.2,2.02449]
[1724643944136,8.1634,2743.3,2743.0,0.95497161]
[1724643944337,0.36445,2742.8,2742.7,0.3564]
[1724643944545,0.36446,2742.7,2742.6,0.3584]
[1724643944738,0.73886,2742.7,2742.6,0.7148]
[1724643945145,0.3744,2742.7,2742.6,0.7148]
[1724643945553,0.3744,2742.7,2742.6,1.07927]
[1724643945741,0.36444,2742.9,2742.6,6.03567]
[1724643946049,0.71454,2742.9,2742.7,1.31]
[1724643946544,1.6618,2743.2,2742.7,1.31]
[1724643946737,0.36441,2743.1,2742.9,1.31]
[1724643946940,0.36441,2743.1,2743.0,0.3826]
[1724643947841,0.48990987,2743.1,2743.0,0.3826]
[1724643948852,0.36441,2743.1,2743.0,0.3826]
[1724643949349,0.36441,2743.1,2743.0,2.074]
[1724643953356,2.25874754,2743.2,2743.0,2.074]
[1724643953357,0.3501,2743.2,2743.0,2.074]
[1724643953947,0.36441,2743.1,2743.0,2.074]
[1724643954351,1.90864754,2743.4,2743.0,5.7196]
[1724643954652,1.90864754,2743.4,2743.2,1.31]
[1724643954653,0.7224,2743.3,2743.2,1.31]
[1724643955246,1.08678,2743.3,2743.2,1.31]
[1724643955457,0.7224,2743.3,2743.2,1.31]
[1724643955951,2.15368904,2743.3,2743.2,1.31]
[1724643956750,0.7224,2743.3,2743.2,1.31]
[1724643960357,1.08678,2743.3,2743.2,1.31]
[1724643962250,1.79725786,2743.3,2743.2,1.31]
[1724643962754,2.27301754,2743.4,2743.2,5.87742637]
[1724643962755,1.43135786,2743.4,2743.2,5.87742637]
[1724643962955,1.43135786,2743.4,2743.3,1.86743637]
[1724643963952,1.79572786,2743.4,2743.3,2.24843637]
[1724643964346,1.43135786,2743.4,2743.3,1.691]
[1724643964553,0.36436,2743.5,2743.3,1.691]
[1724643964554,1.43135786,2743.5,2743.3,5.8931089]
[1724643964962,1.43135786,2743.5,2743.4,0.3526]
[1724643965151,1.43135786,2743.5,2743.4,0.9099089]
[1724643965347,1.43135786,2743.5,2743.4,4.5547089]
[1724643967949,1.43135786,2743.5,2743.4,4.55462496]
[1724643969152,1.43135786,2743.5,2743.4,0.90982496]
[1724643969663,1.43135786,2743.5,2743.4,4.55462496]
[1724643969856,1.43135786,2743.6,2743.4,4.55462496]
[1724643970063,1.43135786,2743.6,2743.4,0.3526]
[1724643970560,1.43135786,2743.6,2743.5,1.31]
[1724643970755,2.63007754,2743.7,2743.5,1.31]
[1724643971265,0.36434,2743.6,2743.5,1.31]
[1724643971566,2.63007754,2743.7,2743.5,1.31]
[1724643972655,0.36434,2743.6,2743.5,1.31]
[1724643974864,0.36435,2743.5,2743.4,0.3526]
[1724643975062,0.36437,2743.4,2743.2,4.5178]
[1724643975253,0.3528,2743.3,2743.2,4.5178]
[1724643975460,0.3528,2743.3,2743.2,5.07481738]
[1724643976055,1.78420012,2743.3,2743.2,1.86701738]
[1724643976368,0.3528,2743.3,2743.2,1.31]
[1724643978254,0.71718,2743.3,2743.2,1.31]
[1724643979162,0.3528,2743.3,2743.2,1.31]
[1724643980258,2.26144754,2743.3,2743.2,1.31]
[1724643981166,1.78458884,2743.3,2743.2,2.23144781]
[1724643981360,1.78458884,2743.3,2743.2,1.31]
[1724643981755,1.78458884,2743.3,2743.2,1.86703165]
[1724643981961,1.78458884,2743.3,2743.2,2.4240577]
[1724643982859,1.78458884,2743.3,2743.2,2.7884477]
[1724643983058,1.43178884,2743.4,2743.3,0.36438]
[1724643983259,1.43178884,2743.4,2743.3,5.87620605]
[1724643983563,1.43178884,2743.5,2743.4,0.36437]
[1724643983768,1.43178884,2743.5,2743.4,2.60189605]
[1724643983969,1.90864754,2743.6,2743.4,2.60189605]
[1724643984266,1.90864754,2743.6,2743.4,1.6805]
[1724643984464,1.90864754,2743.6,2743.4,2.04486]
[1724643985857,1.43165309,2743.5,2743.4,2.04486]
[1724643986067,1.43165309,2743.5,2743.4,2.23733728]
[1724643986567,1.90864754,2743.6,2743.4,2.23733728]
[1724643986568,2.27298754,2743.6,2743.4,2.23733728]
[1724643986762,1.90864754,2743.5,2743.4,0.3705]
[1724643986967,2.28594754,2743.5,2743.4,0.3705]
[1724643987360,2.28594754,2743.5,2743.4,1.6805]
[1724643987571,1.90864754,2743.6,2743.4,1.6805]
[1724643988072,1.43169502,2743.5,2743.4,1.6805]
[1724643988270,1.43169502,2743.5,2743.4,2.23727662]
[1724643988674,2.27298754,2743.6,2743.4,2.23727662]
[1724643988867,2.27298754,2743.6,2743.4,1.6805]
[1724643989073,0.36437,2743.4,2743.1,1.31]
[1724643989274,1.43171275,2743.3,2743.2,0.55688159]
[1724643989872,0.72658,2743.3,2743.2,0.55688159]
[1724643990074,0.3622,2743.3,2743.2,0.55688159]
[1724643990371,1.90864754,2743.5,2743.2,2.23127159]
[1724643990575,1.90864754,2743.5,2743.3,1.31]
[1724643990773,2.27300754,2743.5,2743.3,1.31]
[1724643991371,1.90956146,2743.5,2743.4,1.31]
[1724643992464,1.90956146,2743.5,2743.4,5.51177284]
[1724643992670,1.90956146,2743.5,2743.4,1.86697284]
[1724643993973,1.90956146,2743.5,2743.4,1.86697945]
[1724643996576,2.75037809,2743.6,2743.4,1.86697945]
[1724643996779,2.75037809,2743.6,2743.5,0.3867]
[1724643999179,2.75037809,2743.6,2743.5,0.94391554]
[1724643999571,0.36434,2743.6,2743.5,1.30681554]
[1724643999883,0.36434,2743.6,2743.5,0.7496]
[1724644000582,0.36434,2743.6,2743.5,1.30693945]
[1724644000979,0.36434,2743.6,2743.5,1.86425714]
[1724644001386,0.36434,2743.6,2743.5,1.30693945]
[1724644001576,0.36437,2743.4,2743.3,4.5178]
[1724644001775,0.36437,2743.4,2743.3,3.76511583]
[1724644002180,0.73587,2743.4,2743.3,3.76511583]
[1724644002895,3.12511901,2743.4,2743.3,3.76511583]
[1724644003086,7.68083901,2743.4,2743.3,0.55731583]
[1724644003284,8.06053901,2743.4,2743.3,0.55731583]
[1724644003616,8.06053901,2743.4,2743.1,1.6922]
[1724644003617,5.67129,2743.4,2743.1,1.6922]
[1724644003778,5.67129,2743.4,2743.1,0.3822]
[1724644003779,0.36439,2743.2,2743.1,0.3822]
[1724644003981,0.36439,2743.2,2743.0,0.3737]
[1724644003982,0.36441,2743.1,2743.0,0.3737]
[1724644004183,2.66262059,2743.1,2743.0,0.55747892]
[1724644004379,14.00713778,2743.1,2743.0,0.42530006]
[1724644004686,0.36447,2742.6,2742.5,4.16277161]
[1724644004883,2.27637846,2742.6,2742.5,4.01371027]
[1724644005395,0.36447,2742.6,2742.4,1.31282388]
[1724644005583,1.43329212,2742.5,2742.4,1.31282388]
[1724644005784,1.43329212,2742.5,2742.4,2.11876073]
[1724644006281,0.36447,2742.6,2742.4,2.11876073]
[1724644006282,1.79776212,2742.6,2742.4,2.11876073]
[1724644006484,1.79776212,2742.6,2742.4,1.31282388]
[1724644006980,1.43329212,2742.6,2742.5,1.31]
[1724644007377,1.43329212,2742.7,2742.6,0.36447]
[1724644007582,1.43329212,2742.7,2742.6,1.67447]
[1724644007819,1.43329212,2742.8,2742.6,1.67447]
[1724644009688,1.43329212,2742.8,2742.7,0.3579]
[1724644012395,1.43329212,2742.8,2742.7,0.7347]
[1724644013185,1.43329212,2742.9,2742.7,0.7347]
[1724644014385,1.79772212,2742.9,2742.7,0.7347]
[1724644014591,3.10772212,2742.9,2742.6,1.31]
[1724644014788,2.74329212,2742.8,2742.5,3.2078]
[1724644015104,1.43329212,2742.7,2742.5,3.2078]
[1724644015393,2.15936212,2742.7,2742.5,4.5178]
[1724644015587,1.79489212,2742.7,2742.5,4.5178]
[1724644015789,0.3616,2742.7,2742.5,4.5178]
[1724644017001,0.3616,2742.7,2742.5,1.31]
[1724644020097,1.43329212,2742.8,2742.6,1.31]
[1724644020294,1.79774212,2742.8,2742.6,1.31]
[1724644020491,0.36445,2742.8,2742.6,1.31]
[1724644021289,1.79773212,2742.9,2742.6,1.31]
[1724644022191,1.67445,2742.8,2742.5,1.31]
[1724644022392,3.48034212,2742.8,2742.5,1.31]
[1724644023595,3.48034212,2742.8,2742.5,1.67448]
[1724644023899,3.48034212,2742.8,2742.5,1.31]
[1724644025902,0.36446,2742.7,2742.5,1.31]
[1724644026203,0.3867,2742.6,2742.5,1.31]
[1724644026704,0.75117,2742.6,2742.5,1.31]
[1724644028095,0.3867,2742.6,2742.5,1.31]
[1724644029807,1.67445,2742.8,2742.5,4.9564]
[1724644030003,1.67445,2742.8,2742.5,1.31]
[1724644031010,0.36446,2742.7,2742.5,1.31]
[1724644031207,1.67445,2742.8,2742.5,1.31]
[1724644032307,3.10774212,2742.8,2742.5,1.31]
[1724644032511,1.43329212,2742.8,2742.5,1.67448]
[1724644032814,0.74164,2742.9,2742.4,3.97502388]
[1724644032815,2.17493212,2742.9,2742.6,1.67447]
[1724644032998,2.17493212,2742.9,2742.6,1.31]
[1724644033204,1.79774212,2742.8,2742.6,1.31]
[1724644033404,0.36445,2742.8,2742.6,1.31]
[1724644034006,2.17493212,2742.9,2742.6,1.31]
[1724644034209,2.17493212,2742.9,2742.6,1.67447]
[1724644035096,0.36445,2742.8,2742.6,1.31]
[1724644035300,1.79774212,2742.8,2742.6,1.31]
[1724644035499,1.43329212,2742.8,2742.6,1.31]
[1724644035702,1.43329212,2742.8,2742.5,1.67448]
[1724644035911,1.43329212,2742.8,2742.6,1.67447]
[1724644036098,0.3772,2742.9,2742.6,1.67447]
[1724644036099,2.17492212,2742.9,2742.6,1.67447]
[1724644037196,2.17492212,2742.9,2742.6,4.88227]
[1724644037401,1.43329212,2743.0,2742.8,1.31]
[1724644037705,2.26630846,2743.1,2742.9,2.0266]
[1724644037706,1.43329212,2743.1,2742.9,2.0266]
[1724644037896,2.15211212,2743.1,2742.9,2.0266]
[1724644038205,0.3598,2743.0,2742.9,2.0266]
[1724644038408,0.72422,2743.0,2742.9,2.0266]
[1724644038921,2.15751212,2743.0,2742.8,1.31]
[1724644039214,2.15751212,2743.0,2742.7,1.31]
[1724644039406,2.52611212,2743.0,2742.7,1.6738]
[1724644040699,2.16169212,2743.0,2742.7,2.03826]
[1724644040903,2.16169212,2743.0,2742.7,1.6738]
[1724644040904,0.36444,2742.9,2742.7,1.6738]
[1724644041308,1.79773212,2742.9,2742.7,1.6738]
[1724644041915,1.43329212,2742.9,2742.8,1.31]
[1724644042126,1.79772212,2743.0,2742.8,1.86805878]
[1724644042308,1.79772212,2743.0,2742.9,0.3527]
[1724644043513,1.43329212,2743.0,2742.9,1.6627]
[1724644043711,1.43329212,2743.0,2742.9,6.2307769]
[1724644043903,5.11970846,2743.2,2742.9,5.8663469]
[1724644044109,1.91190846,2743.4,2743.2,0.36439]
[1724644044303,1.91190846,2743.4,2743.3,2.0721]
[1724644044511,3.04056846,2743.5,2743.3,2.0721]
[1724644044919,2.67620846,2743.5,2743.3,2.0721]
[1724644045214,1.91190846,2743.4,2743.3,2.43648]
[1724644045405,1.31,2743.4,2743.0,4.5178]
[1724644045622,1.6744,2743.2,2743.0,3.2078]
[1724644045806,0.3644,2743.2,2743.0,3.2078]
[1724644046719,3.94439846,2743.3,2743.1,0.55803009]
[1724644046903,3.94439846,2743.3,2743.0,3.2078]
[1724644047310,3.58000846,2743.3,2743.1,0.55802623]
[1724644047516,1.91190846,2743.4,2743.2,2.23239481]
[1724644047717,1.91190846,2743.4,2743.3,0.7172]
[1724644048212,5.55670846,2743.4,2743.3,0.7172]
[1724644049421,3.6448,2743.4,2743.3,0.7172]
[1724644050419,3.60410846,2743.5,2743.3,2.0272]
[1724644050609,2.29410846,2743.5,2743.3,2.39158]
[1724644051413,2.29410846,2743.5,2743.3,2.0272]
[1724644051615,2.29410846,2743.5,2743.3,2.39157]
[1724644052618,2.29410846,2743.5,2743.3,2.0272]
[1724644054419,0.3822,2743.5,2743.3,2.0272]
[1724644054725,0.74655,2743.5,2743.3,2.0272]
[1724644056515,0.36437,2743.4,2743.3,2.0272]
[1724644059023,0.74656,2743.5,2743.3,2.0272]
[1724644059218,0.3822,2743.5,2743.4,1.31]
[1724644060130,0.74655,2743.5,2743.4,1.31]
[1724644060520,0.3822,2743.5,2743.4,1.31]
[1724644060721,0.74655,2743.5,2743.4,1.31]
[1724644061228,0.74655,2743.5,2743.3,0.7172]
[1724644061229,0.74655,2743.5,2743.3,2.0272]
[1724644062017,0.36437,2743.4,2743.3,2.0272]
[1724644062421,0.74656,2743.5,2743.3,2.0272]
[1724644067038,0.3822,2743.5,2743.3,2.0272]
[1724644072532,0.74655,2743.5,2743.3,2.0272]
[1724644072942,0.74655,2743.5,2743.3,0.7172]
[1724644076241,0.3822,2743.5,2743.3,0.7172]
[1724644076542,0.3822,2743.5,2743.3,2.0272]
[1724644079443,2.29410846,2743.5,2743.3,2.0272]
[1724644080151,2.29410846,2743.5,2743.4,0.36437]
[1724644080343,0.3822,2743.5,2743.3,2.39157]
[1724644080641,2.29410846,2743.5,2743.3,2.39157]
[1724644081550,2.29410846,2743.5,2743.4,0.5579896]
[1724644082747,1.91190846,2743.5,2743.4,1.8679896]
[1724644083460,1.91190846,2743.5,2743.4,1.31]
[1724644083746,1.91190846,2743.5,2743.4,2.42596948]
[1724644085953,2.75422557,2743.6,2743.4,2.42596948]
[1724644086150,2.38988557,2743.6,2743.5,0.55799445]
[1724644086752,2.38988557,2743.6,2743.4,1.86798534]
[1724644087353,2.75422557,2743.6,2743.5,0.55798866]
[1724644088547,0.36434,2743.6,2743.5,0.55798866]
[1724644088946,0.36434,2743.6,2743.5,0.55799375]
[1724644089941,0.36434,2743.6,2743.4,1.31]
[1724644090139,2.38936816,2743.5,2743.4,1.31]
[1724644090344,2.38936816,2743.5,2743.4,2.23236549]
[1724644090547,1.91161471,2743.5,2743.4,6.43086934]
[1724644091047,1.91161471,2743.5,2743.4,7.23715485]
[1724644091240,1.91161471,2743.6,2743.4,7.23715485]
[1724644091441,1.91161471,2743.6,2743.5,3.63030285]
[1724644092452,2.10498287,2743.7,2743.5,17.29213986]
[1724644092643,0.00902318,2743.8,2743.7,0.36433]
[1724644092960,0.00902318,2743.8,2743.7,11.717341]
[1724644093149,0.00902318,2743.8,2743.7,9.08928283]
[1724644093348,0.00902318,2743.8,2743.7,10.37584521]
[1724644093571,0.00902318,2743.8,2743.7,7.49976023]
[1724644093743,0.00902318,2743.8,2743.7,10.91135314]
[1724644093943,0.00902318,2743.8,2743.7,9.80653867]
[1724644094240,0.00902318,2743.8,2743.7,9.92873959]
[1724644094446,0.00902318,2743.8,2743.7,7.22960959]
[1724644094647,0.00902318,2743.8,2743.7,5.80948831]
[1724644095248,0.00902318,2743.8,2743.7,7.99658808]
[1724644095450,0.00902318,2743.8,2743.7,4.35178808]
[1724644095948,0.00902318,2743.8,2743.7,7.99658808]
[1724644096445,0.00902318,2743.8,2743.7,6.63257886]
[1724644096645,0.00902318,2743.8,2743.7,7.99664695]
[1724644097745,0.00902318,2743.8,2743.7,11.23878113]
[1724644098147,0.00902318,2743.8,2743.7,9.80658021]
[1724644098342,0.00902318,2743.8,2743.7,5.21902256]
[1724644098538,0.00902318,2743.8,2743.7,8.86382256]
[1724644099143,0.00902318,2743.8,2743.7,7.99558228]
[1724644099555,0.00902318,2743.8,2743.7,7.99554721]
[1724644102753,0.00902318,2743.8,2743.7,9.83931419]
[1724644102953,0.00902318,2743.8,2743.7,11.20335471]
[1724644103258,0.00902318,2743.8,2743.7,10.24957052]
[1724644103450,0.00902318,2743.8,2743.7,7.04177052]
[1724644103652,0.00902318,2743.8,2743.7,10.24957052]
[1724644104354,0.00902318,2743.8,2743.7,11.20335471]
[1724644105146,0.00902318,2743.8,2743.7,10.24957052]